{"text_format":"3","workbook":"xlsx","n_sheets":4,"sheets":["Začetek","Stroški","Prihodek","Povzetek"],"not_rendered":{"charts":1,"defined_names":2},"read":"whole","date_system":"1900"}

{"sheet":"Začetek","index":0,"n_rows":8,"n_cols":2,"rows_kept":8}
[null,"O TEJ PREDLOGI"]
[null,"S tem delovnim zvezkom »Proračun dogodka« lahko spremljate nastale stroške in prihodek, prislužen med dogodkom."]
[null,"Vnesite ime dogodka in podrobnosti na delovni list »Stroški« in »Prihodek«."]
[null,"Vrednosti »Skupni stroški« in »Prihodki skupaj« so izračunani samodejno."]
[null,"Grafikon »Povzetek dobička in izgube« je samodejno posodobljen na delovnem listu »Povzetek«."]
[null,"Opomba: "]
[null,"Dodatna navodila so na voljo v stolpcu A na vsakem delovnem listu. To besedilo je bilo skrito namenoma. Če želite besedilo premakniti, izberite stolpec A, nato izberite še IZBRIŠI. Če želite besedilo razkriti, izberite stolpec A, nato zamenjajte barvo pisave."]
[null,"Za več informacij o tabelah v tabeli pritisnite tipko SHIFT in nato tipko F10 ter izberite možnost TABELA in nato še NADOMESTNO BESEDILO."]

{"sheet":"Stroški","index":1,"n_rows":33,"n_cols":8,"rows_kept":33,"merged":[[0,5,0,7],[1,1,1,7],[2,6,2,7]]}
["Vnesite predvideno in dejansko stroške za vsako kategorijo v ustrezne tabele na tem delovnem listu. Vrednost »Stroški skupaj« je izračunana samodejno. Uporabna navodila za uporabo tega delovnega lista najdete v celicah v tem stolpcu. Puščica dol za začetek dela."]
["Vnesite ime dogodka v celico na desni, da prilagodite naslov tega delovnega lista in drugih delovnih listov.","Proračun dogodka za \nIme dogodka"]
["Oznaka »Stroški« je v celici G3.",{"$nulls":5}," Stroški"]
["Oznaka »Predvideno« je v celici G4, oznaka »Dejansko« pa v celici H4.",{"$nulls":5},"Predvideno","Dejansko"]
["Oznaka »Skupni stroški« je v celici na desni. Predvideno stroški in Skupni stroški so samodejno izračunani v celici G5. Dejanski Skupni stroški in podatkovna vrstica, ki prikazuje dejansko Skupni stroški, so samodejno posodobljeni v celici H5. Naslednji korak je v celici A7.","Skupni stroški",{"$nulls":4},{"$f":"SUM(C12,C20,C26,C33,G12,G20,G25)","v":{"v":1145,"d":"1,145.00 €"}},{"$f":"SUM(D12,D20,D26,D33,H12,H20,H25)","v":{"v":395,"d":"395.00 €"}}]
[]
["Vnesite stroški mesta v tabelo z začetkom v celici na desni, stroški za okrepčila pa v tabelo z začetkom v celici F7. Naslednji korak je v celici A14.","Prizorišče","Predvideno","Dejansko",null,"Pijača in prigrizki","Predvideno","Dejanski"]
[null,"Stroški najema sobe in dvorane",{"v":500,"d":"500.00 €"},{"v":250,"d":"250.00 €"},null,"Hrana"]
[null,"Osebje na prizorišču",{"v":400,"d":"400.00 €"},{"v":50,"d":"50.00 €"},null,"Pijača"]
[null,"Oprema",{"$nulls":3},"Prti"]
[null,"Mize in stoli",{"$nulls":3},"Osebje in napitnine"]
[null,"Vsota",{"$f":"SUBTOTAL(109,StroškiMesta[Predvideno])","v":{"v":900,"d":"900.00 €"}},{"$f":"SUBTOTAL(109,StroškiMesta[Dejansko])","v":{"v":300,"d":"300.00 €"}},null,"Vsota",{"$f":"SUBTOTAL(109,StroškiZaOkrepčila[Predvideno])","v":{"v":0,"d":"0.00 €"}},{"$f":"SUBTOTAL(109,StroškiZaOkrepčila[Dejanski])","v":{"v":0,"d":"0.00 €"}}]
[]
["Vnesite stroški za dekoracije v tabelo z začetkom v celici na desni, stroški programa pa v tabelo z začetkom v celici F14. Naslednji korak je v celici A22.","Dekoracija","Predvideno","Dejansko",null,"Program","Predvideno","Dejanski"]
[null,"Cvetje",{"v":200,"d":"200.00 €"},{"v":50,"d":"50.00 €"},null,"Izvajalci"]
[null,"Sveče",{"$nulls":3},"Govorci"]
[null,"Osvetlitev",{"$nulls":3},"Potovanje"]
[null,"Baloni",{"$nulls":3},"Hotel"]
[null,"Papir",{"$nulls":3},"Drugo"]
[null,"Vsota",{"$f":"SUBTOTAL(109,StroškiZaDekoracije[Predvideno])","v":{"v":200,"d":"200.00 €"}},{"$f":"SUBTOTAL(109,StroškiZaDekoracije[Dejansko])","v":{"v":50,"d":"50.00 €"}},null,"Vsota",{"$f":"SUBTOTAL(109,StroškiPrograma[Predvideno])","v":{"v":0,"d":"0.00 €"}},{"$f":"SUBTOTAL(109,StroškiPrograma[Dejanski])","v":{"v":0,"d":"0.00 €"}}]
[]
["Vnesite stroški promocije materiala v tabelo z začetkom v celici na desni, stroški za nagrade pa v tabelo z začetkom v celici F22. Naslednje navodilo je v celici A28.","Promocijski material","Predvideno","Dejansko",null,"Nagrade","Predvideno","Dejansko"]
[null,"Grafika",{"v":45,"d":"45.00 €"},{"v":45,"d":"45.00 €"},null,"Manšete/plakete/trofeje"]
[null,"Fotokopiranje/tiskanje",{"$nulls":3},"Darila"]
[null,"Poštnina",{"$nulls":3},"Vsota",{"$f":"SUBTOTAL(109,StroškiZaNagrade[Predvideno])","v":{"v":0,"d":"0.00 €"}},{"$f":"SUBTOTAL(109,StroškiZaNagrade[Dejansko])","v":{"v":0,"d":"0.00 €"}}]
[null,"Vsota",{"$f":"SUBTOTAL(109,StroškiPromocije[Predvideno])","v":{"v":45,"d":"45.00 €"}},{"$f":"SUBTOTAL(109,StroškiPromocije[Dejansko])","v":{"v":45,"d":"45.00 €"}}]
[]
["Vnesite razni stroški v tabelo z začetkom v celici na desni.","Razno","Predvideno","Dejansko"]
[null,"Telefon"]
[null,"Prevoz"]
[null,"Pisarniška oprema"]
[null,"Faks"]
[null,"Vsota",{"$f":"SUBTOTAL(109,RazniStroški[Predvideno])","v":{"v":0,"d":"0.00 €"}},{"$f":"SUBTOTAL(109,RazniStroški[Dejansko])","v":{"v":0,"d":"0.00 €"}}]

{"sheet":"Prihodek","index":2,"n_rows":30,"n_cols":7,"rows_kept":30,"merged":[[1,1,1,6],[2,5,2,6]]}
["Vnesite predvideno in dejansko prihodke za vsako kategorijo v ustrezne tabele na tem delovnem listu. Prihodek skupaj je samodejno izračunan. Uporabna navodila za uporabo tega delovnega lista najdete v celicah v tem stolpcu. Puščica dol za začetek dela."]
["Ime dogodka se samodejno posodobi v celici na desni strani.",{"$f":"Stroški!B2","v":"Proračun dogodka za \nIme dogodka"}]
["Oznaka »Prihodek« je v celici F3.",{"$nulls":4}," Prihodek"]
["Oznaka »Predvideno« je v celici F4, oznaka »Dejansko« pa v celici G4.",{"$nulls":4},"Predvideno","Dejansko"]
["Oznaka »Prihodki skupaj« je v celici na desni. Predviden prihodek skupaj je samodejno izračunan v celici F5. Dejansko skupaj skupaj in podatkovna vrstica, ki prikazujeta Dejansko skupaj skupaj, sta samodejno posodobljena v celici G5.","Prihodki skupaj",{"$nulls":3},{"$f":"SUM(Vstopnice[[#Totals],[Predviden prihodek]],OglasiVProgramu[[#Totals],[Predviden prihodek]],RazstavljalciInDobavitelji[[#Totals],[Predviden prihodek]],ProdajaIzdelka[[#Totals],[Predviden prihodek]])","v":{"v":1936,"d":"1,936.00 €"}},{"$f":"SUM(Vstopnice[[#Totals],[Dejansko skupaj]],OglasiVProgramu[[#Totals],[Dejansko skupaj]],RazstavljalciInDobavitelji[[#Totals],[Dejansko skupaj]],ProdajaIzdelka[[#Totals],[Dejansko skupaj]])","v":{"v":1831,"d":"1,831.00 €"}}]
["Oznaka za vstopnina je v celici na desni.","Vstopnina"]
["Vnesite predvideno in dejansko število vstopnin s cenami vstopnic v tabelo z začetkom v celici na desni. Predvideo in dejansko prihodek z naslova vstopnina je samodejno izračunan. Naslednje navodilo je v celici A12.","Predvideno","Dejansko","Vrsta","Cena","Predviden prihodek","Dejansko skupaj"]
[null,300,278,"Odrasli @",{"v":5,"d":"5.00 €"},{"$f":"B8*E8","v":{"v":1500,"d":"1,500.00 €"}},{"$f":"C8*E8","v":{"v":1390,"d":"1,390.00 €"}}]
[null,197,195,"Otroci @",{"v":2,"d":"2.00 €"},{"$f":"B9*E9","v":{"v":394,"d":"394.00 €"}},{"$f":"C9*E9","v":{"v":390,"d":"390.00 €"}}]
[null,42,51,"Drugo @",{"v":1,"d":"1.00 €"},{"v":42,"d":"42.00 €"},{"v":51,"d":"51.00 €"}]
[null," ",{"$nulls":3},{"$f":"SUBTOTAL(109,Vstopnice[Predviden prihodek])","v":{"v":1936,"d":"1,936.00 €"}},{"$f":"SUBTOTAL(109,Vstopnice[Dejansko skupaj])","v":{"v":1831,"d":"1,831.00 €"}}]
["Oznaka za oglase v programu je v celici na desni.","Oglasi v programu"]
["Vnesite predvideno in dejansko število oglasov v programu ter tarife oglasov v tabelo z začetkom v celici na desni. Predvideno in dejansko prihodek z naslova Oglasi v programu izračunan. Naslednje navodilo je v celici A18.","Predvideno","Dejansko","Vrsta","Cena","Predviden prihodek","Dejansko skupaj"]
[{"$nulls":3},"Naslovnice @",null,{"$f":"B14*E14","v":{"v":0,"d":"0.00 €"}},{"$f":"C14*E14","v":{"v":0,"d":"0.00 €"}}]
[{"$nulls":3},"Polovica strani @",null,{"$f":"B15*E15","v":{"v":0,"d":"0.00 €"}},{"$f":"C15*E15","v":{"v":0,"d":"0.00 €"}}]
[{"$nulls":3},"Četrtina strani @",null,{"v":0,"d":"0.00 €"},{"v":0,"d":"0.00 €"}]
[null," ",{"$nulls":3},{"$f":"SUBTOTAL(109,OglasiVProgramu[Predviden prihodek])","v":{"v":0,"d":"0.00 €"}},{"$f":"SUBTOTAL(109,OglasiVProgramu[Dejansko skupaj])","v":{"v":0,"d":"0.00 €"}}]
["Oznaka za razstavljavce ali prodajalce je v celici na desni.","Razstavljavci/prodajalci"]
["Vnesite predvideno in dejansko število razstavljavci in prodajalci ter tarife za stojnice v tabelo z začetkom v celici na desni. Predvideo in dejansko prihodek je izračunan samodejno. Naslednje navodilo je v celici A24.","Predvideno","Dejansko","Vrsta","Cena","Predviden prihodek","Dejansko skupaj"]
[{"$nulls":3},"Velika stojnica @",null,{"$f":"B20*E20","v":{"v":0,"d":"0.00 €"}},{"$f":"C20*E20","v":{"v":0,"d":"0.00 €"}}]
[{"$nulls":3},"Srednje velika stojnica @",null,{"$f":"B21*E21","v":{"v":0,"d":"0.00 €"}},{"$f":"C21*E21","v":{"v":0,"d":"0.00 €"}}]
[{"$nulls":3},"Mala stojnica @",null,{"v":0,"d":"0.00 €"},{"v":0,"d":"0.00 €"}]
[null," ",{"$nulls":3},{"$f":"SUBTOTAL(109,RazstavljalciInDobavitelji[Predviden prihodek])","v":{"v":0,"d":"0.00 €"}},{"$f":"SUBTOTAL(109,RazstavljalciInDobavitelji[Dejansko skupaj])","v":{"v":0,"d":"0.00 €"}}]
["Oznaka za prodajo element je v celici na desni.","Prodaja elementov"]
["Vnesite predvideno in dejansko število Prodaja elementov in tarife elementov v tabelo z začetkom v celici na desni. Predvideno in dejansko prihodek je izračunan samodejno.","Predvideno","Dejansko","Vrsta","Cena","Predviden prihodek","Dejansko skupaj"]
[{"$nulls":3},"Elementi @",null,{"$f":"B26*E26","v":{"v":0,"d":"0.00 €"}},{"$f":"C26*E26","v":{"v":0,"d":"0.00 €"}}]
[{"$nulls":3},"Elementi @",null,{"$f":"B27*E27","v":{"v":0,"d":"0.00 €"}},{"$f":"C27*E27","v":{"v":0,"d":"0.00 €"}}]
[{"$nulls":3},"Elementi @",null,{"v":0,"d":"0.00 €"},{"v":0,"d":"0.00 €"}]
[{"$nulls":3},"Elementi @",null,{"v":0,"d":"0.00 €"},{"v":0,"d":"0.00 €"}]
[null," ",{"$nulls":3},{"$f":"SUBTOTAL(109,ProdajaIzdelka[Predviden prihodek])","v":{"v":0,"d":"0.00 €"}},{"$f":"SUBTOTAL(109,ProdajaIzdelka[Dejansko skupaj])","v":{"v":0,"d":"0.00 €"}}]

{"sheet":"Povzetek","index":3,"n_rows":9,"n_cols":4,"rows_kept":9,"merged":[[1,1,1,3],[2,2,2,3],[8,1,8,4],[9,1,9,3]]}
["Povzetek dobička in izgube ter grafikon, ki prikazuje prihodek skupaj in stroške, so samodejno posodobljeni na tem delovnem listu. Uporabna navodila za uporabo tega delovnega lista najdete v celicah v tem stolpcu. Puščica dol za začetek dela."]
["Ime dogodka se samodejno posodobi v celici na desni strani.",{"$f":"Stroški!B2","v":"Proračun dogodka za \nIme dogodka"}]
["Oznaka za povzetek dobička in izgube je v celici C3. Naslednji korak je v celici A5.",null,"Povzetek dobička in izgube"]
[]
["Tabela s Vsota vrednostjo z začetkom v celici na desni je samodejno posodobljena. Naslednji korak je v celici A9.","Vsota","Predvideno","Dejansko"]
[null,"Prihodek skupaj",{"$f":"Prihodek!F5","v":{"v":1936,"d":"1,936.00 €"}},{"$f":"Prihodek!G5","v":{"v":1831,"d":"1,831.00 €"}}]
[null,"Stroški skupaj",{"$f":"Stroški!G5","v":{"v":1145,"d":"1,145.00 €"}},{"$f":"Stroški!H5","v":{"v":395,"d":"395.00 €"}}]
[null,"Dobiček skupaj (ali izguba)",{"$f":"C6-C7","v":{"v":791,"d":"791.00 €"}},{"$f":"D6-D7","v":{"v":1436,"d":"1,436.00 €"}}]
["Gručni stolpčni grafikon s prikazano primerjavo predvideno in dejansko prihodek skupaj ter Stroški skupaj je v celici na desni.","Gručni stolpčni grafikon, ki prikazuje primerjavo predvideno in dejansko prihodka skupaj ter stroškov skupaj, je v tej celici."]